[Event "Late-Titled-Tuesday-Blitz-February-13-2024"]
[Site "Chess.com"]
[Date "2024.02.13"]
[Round "5"]
[White "CrushingKings"]
[Black "Zampronha1971"]
[Result "0-1"]
[WhiteElo "2631"]
[BlackElo "2362"]
[TimeControl "180+1"]
[EndTime "14:56:20 PST"]
[Termination "Zampronha1971 won on time"]

1. Nf3 {[%clk 0:02:53.7]} 1... Nf6 {[%clk 0:02:59]} 2. g3 {[%clk 0:02:53.6]}
2... e6 {[%clk 0:02:59.4]} 3. Bg2 {[%clk 0:02:53.6]} 3... d5 {[%clk 0:03:00.3]}
4. O-O {[%clk 0:02:54.3]} 4... c5 {[%clk 0:03:00.5]} 5. d4 {[%clk 0:02:54.2]}
5... Nc6 {[%clk 0:03:00.4]} 6. c4 {[%clk 0:02:54]} 6... cxd4 {[%clk 0:02:59]} 7.
Nxd4 {[%clk 0:02:52.1]} 7... e5 {[%clk 0:02:59]} 8. Nxc6 {[%clk 0:02:49.1]} 8...
bxc6 {[%clk 0:02:59.9]} 9. cxd5 {[%clk 0:02:49.8]} 9... cxd5 {[%clk 0:03:00.2]}
10. Nc3 {[%clk 0:02:50.3]} 10... Be6 {[%clk 0:02:58.2]} 11. Qa4+ {[%clk
0:02:47.2]} 11... Qd7 {[%clk 0:02:58]} 12. Qxd7+ {[%clk 0:02:47.3]} 12... Kxd7
{[%clk 0:02:56.6]} 13. Bg5 {[%clk 0:02:48]} 13... Rb8 {[%clk 0:02:40]} 14. Bxf6
{[%clk 0:02:40.3]} 14... gxf6 {[%clk 0:02:38.4]} 15. Nxd5 {[%clk 0:02:40.9]}
15... Bxd5 {[%clk 0:02:33.3]} 16. Bxd5 {[%clk 0:02:41.6]} 16... Rxb2 {[%clk
0:02:32.9]} 17. Rfd1 {[%clk 0:02:42.2]} 17... Bd6 {[%clk 0:02:30.4]} 18. Bxf7
{[%clk 0:02:33.7]} 18... Rxe2 {[%clk 0:01:59.8]} 19. Rab1 {[%clk 0:02:33.2]}
19... Rc2 {[%clk 0:02:00.3]} 20. Rb5 {[%clk 0:02:17.7]} 20... Ke7 {[%clk
0:01:57.5]} 21. Bb3 {[%clk 0:02:16.5]} 21... Rc7 {[%clk 0:01:53]} 22. Rbd5
{[%clk 0:01:46.2]} 22... Rd8 {[%clk 0:01:37.2]} 23. Kg2 {[%clk 0:01:45.9]} 23...
Rc5 {[%clk 0:01:32]} 24. R5d2 {[%clk 0:01:33.1]} 24... Bc7 {[%clk 0:01:29.4]}
25. Rxd8 {[%clk 0:00:58.9]} 25... Bxd8 {[%clk 0:01:30.3]} 26. Kf3 {[%clk
0:00:59.1]} 26... Bb6 {[%clk 0:01:27.8]} 27. Ke4 {[%clk 0:00:55.3]} 27... Rc8
{[%clk 0:01:15]} 28. Rd2 {[%clk 0:00:55.1]} 28... Rd8 {[%clk 0:01:12.4]} 29. Re2
{[%clk 0:00:53.4]} 29... Kf8 {[%clk 0:00:55.9]} 30. Kf5 {[%clk 0:00:52.4]} 30...
Kg7 {[%clk 0:00:56.1]} 31. f4 {[%clk 0:00:46.8]} 31... Bd4 {[%clk 0:00:46]} 32.
Rc2 {[%clk 0:00:43.2]} 32... Rd7 {[%clk 0:00:43.5]} 33. Rc8 {[%clk 0:00:42.4]}
33... Rb7 {[%clk 0:00:32.1]} 34. Rg8+ {[%clk 0:00:40.4]} 34... Kh6 {[%clk
0:00:31.4]} 35. fxe5 {[%clk 0:00:13.6]} 35... Bxe5 {[%clk 0:00:30]} 36. Bc4
{[%clk 0:00:07.6]} 36... Rg7 {[%clk 0:00:27.4]} 37. Rc8 {[%clk 0:00:04.6]} 37...
Rc7 {[%clk 0:00:27.8]} 38. Rxc7 {[%clk 0:00:03.4]} 38... Bxc7 {[%clk 0:00:28.4]}
39. Kxf6 {[%clk 0:00:04.2]} 39... Bd6 {[%clk 0:00:26.5]} 40. Be2 {[%clk
0:00:04.3]} 40... Bc7 {[%clk 0:00:26.5]} 41. Bg4 {[%clk 0:00:03.4]} 41... Bb8
{[%clk 0:00:26.6]} 42. Bf5 {[%clk 0:00:03.8]} 42... Bc7 {[%clk 0:00:18]} 43. Ke6
{[%clk 0:00:04]} 43... Ba5 {[%clk 0:00:17.7]} 44. Kd5 {[%clk 0:00:03.3]} 44...
Bb6 {[%clk 0:00:16.3]} 45. h3 {[%clk 0:00:02.3]} 45... Bf2 {[%clk 0:00:15.3]}
46. g4 {[%clk 0:00:02.8]} 46... Bg3 {[%clk 0:00:10.5]} 47. Kc6 {[%clk
0:00:02.4]} 47... Bf2 {[%clk 0:00:10.1]} 48. Kb7 {[%clk 0:00:01.3]} 48... Kg7
{[%clk 0:00:10.3]} 0-1

[Event "Late-Titled-Tuesday-Blitz-February-13-2024"]
[Site "Chess.com"]
[Date "2024.02.13"]
[Round "5"]
[White "HandKnit"]
[Black "FontVella8"]
[Result "0-1"]
[WhiteElo "2511"]
[BlackElo "2706"]
[TimeControl "180+1"]
[EndTime "14:56:20 PST"]
[Termination "FontVella8 won on time"]

1. c4 {[%clk 0:03:00.9]} 1... Nf6 {[%clk 0:02:58]} 2. Nc3 {[%clk 0:03:00.2]}
2... e6 {[%clk 0:02:55.7]} 3. e4 {[%clk 0:02:59.7]} 3... d5 {[%clk 0:02:54.4]}
4. cxd5 {[%clk 0:03:00.6]} 4... exd5 {[%clk 0:02:53.4]} 5. e5 {[%clk 0:03:01.2]}
5... d4 {[%clk 0:02:49.8]} 6. exf6 {[%clk 0:02:58]} 6... dxc3 {[%clk 0:02:47.6]}
7. Bb5+ {[%clk 0:02:57.7]} 7... c6 {[%clk 0:02:45.5]} 8. Qe2+ {[%clk 0:02:57.8]}
8... Be6 {[%clk 0:02:42.6]} 9. Bc4 {[%clk 0:02:56.2]} 9... cxd2+ {[%clk
0:02:42.1]} 10. Bxd2 {[%clk 0:02:54.9]} 10... Qxf6 {[%clk 0:02:40.6]} 11. Bc3
{[%clk 0:02:51.2]} 11... Qg6 {[%clk 0:02:36.1]} 12. Nf3 {[%clk 0:02:48.9]} 12...
Nd7 {[%clk 0:02:30.5]} 13. O-O {[%clk 0:02:40.6]} 13... Be7 {[%clk 0:02:28.7]}
14. Rfe1 {[%clk 0:02:20.1]} 14... O-O-O {[%clk 0:02:11.3]} 15. Bxe6 {[%clk
0:02:16.4]} 15... fxe6 {[%clk 0:02:09.7]} 16. Qxe6 {[%clk 0:02:17.3]} 16... Qxe6
{[%clk 0:02:08.2]} 17. Rxe6 {[%clk 0:02:18.2]} 17... Bf6 {[%clk 0:02:07.2]} 18.
Bxf6 {[%clk 0:02:15.7]} 18... Nxf6 {[%clk 0:02:07.2]} 19. Rae1 {[%clk
0:02:15.7]} 19... Rd7 {[%clk 0:01:48.7]} 20. h3 {[%clk 0:02:15]} 20... Rhd8
{[%clk 0:01:48]} 21. g4 {[%clk 0:02:14.1]} 21... Rd3 {[%clk 0:01:46.2]} 22. R1e3
{[%clk 0:02:08.4]} 22... Rd1+ {[%clk 0:01:42.9]} 23. Kh2 {[%clk 0:02:04.6]}
23... Nd5 {[%clk 0:01:41.1]} 24. R3e4 {[%clk 0:01:54.9]} 24... h6 {[%clk
0:01:37.8]} 25. Kg3 {[%clk 0:01:52.7]} 25... Rd3 {[%clk 0:01:37.1]} 26. Re8
{[%clk 0:01:51.5]} 26... b5 {[%clk 0:01:31.2]} 27. Rxd8+ {[%clk 0:01:50.3]}
27... Kxd8 {[%clk 0:01:31.8]} 28. h4 {[%clk 0:01:45.6]} 28... c5 {[%clk
0:01:29.4]} 29. g5 {[%clk 0:01:41]} 29... h5 {[%clk 0:01:27.2]} 30. Re6 {[%clk
0:01:35.8]} 30... c4 {[%clk 0:01:24.4]} 31. Rg6 {[%clk 0:01:30.7]} 31... Ne7
{[%clk 0:01:21.2]} 32. Ra6 {[%clk 0:01:20.4]} 32... b4 {[%clk 0:01:09.5]} 33.
Rxa7 {[%clk 0:01:10.4]} 33... c3 {[%clk 0:01:03]} 34. bxc3 {[%clk 0:01:11.3]}
34... bxc3 {[%clk 0:01:03.7]} 35. Ra4 {[%clk 0:01:06.8]} 35... Nf5+ {[%clk
0:00:31.2]} 36. Kf4 {[%clk 0:00:47]} 36... Nd6 {[%clk 0:00:26.2]} 37. Ra5 {[%clk
0:00:23.8]} 37... Nb7 {[%clk 0:00:10.8]} 38. Ra4 {[%clk 0:00:18.9]} 38... Nd6
{[%clk 0:00:08.7]} 39. Ra5 {[%clk 0:00:18.9]} 39... Nc4 {[%clk 0:00:06]} 40. Rc5
{[%clk 0:00:16.8]} 40... Nd2 {[%clk 0:00:06.3]} 41. Ne1 {[%clk 0:00:11.3]} 41...
Rh3 {[%clk 0:00:05.5]} 42. Nc2 {[%clk 0:00:05.8]} 42... Rxh4+ {[%clk 0:00:05.4]}
43. Ke3 {[%clk 0:00:06.1]} 43... Rh3+ {[%clk 0:00:05.4]} 44. Ke2 {[%clk
0:00:06]} 44... Ne4 {[%clk 0:00:04.1]} 45. Rc4 {[%clk 0:00:04.6]} 45... Nxg5
{[%clk 0:00:03.8]} 46. Ne3 {[%clk 0:00:02.5]} 46... Ne6 {[%clk 0:00:03.3]} 47.
Rxc3 {[%clk 0:00:01.9]} 47... g5 {[%clk 0:00:03.5]} 0-1

[Event "Late-Titled-Tuesday-Blitz-February-13-2024"]
[Site "Chess.com"]
[Date "2024.02.13"]
[Round "5"]
[White "MikeSailer"]
[Black "Sajkochess"]
[Result "1-0"]
[WhiteElo "2211"]
[BlackElo "2357"]
[TimeControl "180+1"]
[EndTime "14:56:20 PST"]
[Termination "MikeSailer won by resignation"]

1. d4 {[%clk 0:02:59.9]} 1... Nf6 {[%clk 0:02:59.8]} 2. Nf3 {[%clk 0:02:59.5]}
2... e6 {[%clk 0:02:59.6]} 3. Bf4 {[%clk 0:02:59.8]} 3... c5 {[%clk 0:02:54.8]}
4. e3 {[%clk 0:02:59.9]} 4... cxd4 {[%clk 0:02:53.2]} 5. exd4 {[%clk 0:03:00.3]}
5... b6 {[%clk 0:02:53.8]} 6. Bd3 {[%clk 0:02:57.7]} 6... Bb7 {[%clk 0:02:54]}
7. O-O {[%clk 0:02:57.9]} 7... Be7 {[%clk 0:02:53.3]} 8. Nbd2 {[%clk 0:02:54.9]}
8... O-O {[%clk 0:02:53.4]} 9. a4 {[%clk 0:02:54.8]} 9... a6 {[%clk 0:02:52.7]}
10. c3 {[%clk 0:02:54.8]} 10... d6 {[%clk 0:02:48.3]} 11. h3 {[%clk 0:02:54.8]}
11... Nbd7 {[%clk 0:02:48]} 12. Re1 {[%clk 0:02:54.9]} 12... Re8 {[%clk
0:02:48.5]} 13. Qc2 {[%clk 0:02:52.6]} 13... Nf8 {[%clk 0:02:48.3]} 14. c4
{[%clk 0:02:41.1]} 14... Rc8 {[%clk 0:02:45.6]} 15. b4 {[%clk 0:02:37.1]} 15...
Nd5 {[%clk 0:02:44.8]} 16. Bh2 {[%clk 0:01:56.8]} 16... Nxb4 {[%clk 0:02:43.9]}
17. Qc3 {[%clk 0:01:54.5]} 17... d5 {[%clk 0:02:37.4]} 18. c5 {[%clk 0:01:34.8]}
18... bxc5 {[%clk 0:02:30.1]} 19. Bf1 {[%clk 0:01:24.8]} 19... cxd4 {[%clk
0:02:26.5]} 20. Qxd4 {[%clk 0:01:24.6]} 20... Nc2 {[%clk 0:02:25.2]} 21. Qa7
{[%clk 0:01:23]} 21... Nxe1 {[%clk 0:02:02.5]} 22. Qxb7 {[%clk 0:01:20.4]} 22...
Nxf3+ {[%clk 0:01:56.1]} 23. Nxf3 {[%clk 0:01:20.7]} 23... a5 {[%clk 0:01:40]}
24. Bb5 {[%clk 0:01:20.7]} 24... Rb8 {[%clk 0:01:37.6]} 25. Bxb8 {[%clk
0:01:08.8]} 25... Qxb8 {[%clk 0:01:38.2]} 26. Qa6 {[%clk 0:00:55]} 26... Rc8
{[%clk 0:01:29.8]} 27. Qxa5 {[%clk 0:00:55.2]} 27... e5 {[%clk 0:01:15.5]} 28.
Qd2 {[%clk 0:00:51.4]} 28... d4 {[%clk 0:01:14]} 29. Re1 {[%clk 0:00:45.6]}
29... Bd6 {[%clk 0:01:03.7]} 30. Qe2 {[%clk 0:00:33.9]} 30... Ng6 {[%clk
0:01:00.1]} 31. h4 {[%clk 0:00:32.4]} 31... Nf4 {[%clk 0:00:59.5]} 32. Qe4
{[%clk 0:00:32.8]} 32... f6 {[%clk 0:00:43.1]} 33. g3 {[%clk 0:00:31.9]} 33...
Ng6 {[%clk 0:00:27.7]} 34. h5 {[%clk 0:00:30.1]} 34... Ne7 {[%clk 0:00:27.6]}
35. h6 {[%clk 0:00:29.3]} 35... g6 {[%clk 0:00:27.2]} 36. Qg4 {[%clk 0:00:20.5]}
36... Kf7 {[%clk 0:00:24.7]} 37. Bd7 {[%clk 0:00:19.9]} 37... f5 {[%clk
0:00:20.4]} 38. Ng5+ {[%clk 0:00:11.9]} 38... Kg8 {[%clk 0:00:18.8]} 39. Be6+
{[%clk 0:00:10]} 39... Kh8 {[%clk 0:00:16.3]} 40. Nf7+ {[%clk 0:00:10.5]} 40...
Kg8 {[%clk 0:00:16.6]} 41. Qg5 {[%clk 0:00:10.5]} 41... Kf8 {[%clk 0:00:07.9]}
42. Qf6 {[%clk 0:00:10.7]} 42... Ng8 {[%clk 0:00:07.9]} 43. Qg7+ {[%clk
0:00:09.9]} 43... Ke7 {[%clk 0:00:08.3]} 44. Nxd6+ {[%clk 0:00:08.2]} 44... Kxd6
{[%clk 0:00:08.5]} 45. Qd7+ {[%clk 0:00:08.2]} 45... Kc5 {[%clk 0:00:08.5]} 46.
Rc1+ {[%clk 0:00:08.7]} 46... Kb4 {[%clk 0:00:08.2]} 47. Rb1+ {[%clk 0:00:09.1]}
47... Kc3 {[%clk 0:00:08.6]} 48. Rxb8 {[%clk 0:00:09.1]} 48... Rxb8 {[%clk
0:00:09]} 49. Qc7+ {[%clk 0:00:09.8]} 1-0

[Event "Late-Titled-Tuesday-Blitz-February-13-2024"]
[Site "Chess.com"]
[Date "2024.02.13"]
[Round "5"]
[White "Dinamo3"]
[Black "Rinqed222"]
[Result "1/2-1/2"]
[WhiteElo "2527"]
[BlackElo "2283"]
[TimeControl "180+1"]
[EndTime "14:56:22 PST"]
[Termination "Game drawn by repetition"]

1. c4 {[%clk 0:03:00.9]} 1... Nf6 {[%clk 0:02:59.3]} 2. Nc3 {[%clk 0:02:58.4]}
2... g6 {[%clk 0:02:59.2]} 3. g3 {[%clk 0:02:58.4]} 3... Bg7 {[%clk 0:02:59.5]}
4. Bg2 {[%clk 0:02:59]} 4... O-O {[%clk 0:02:59.9]} 5. d3 {[%clk 0:02:59.4]}
5... d6 {[%clk 0:02:59.1]} 6. e4 {[%clk 0:02:59.7]} 6... c5 {[%clk 0:02:48.5]}
7. Nge2 {[%clk 0:02:58.7]} 7... Nc6 {[%clk 0:02:42.6]} 8. O-O {[%clk 0:02:58.3]}
8... a6 {[%clk 0:02:41.5]} 9. a4 {[%clk 0:02:50.2]} 9... Nd4 {[%clk 0:02:26.4]}
10. Rb1 {[%clk 0:02:42.7]} 10... Nd7 {[%clk 0:02:20.1]} 11. b4 {[%clk
0:02:21.1]} 11... cxb4 {[%clk 0:02:13.3]} 12. Rxb4 {[%clk 0:02:21.1]} 12... Nc5
{[%clk 0:02:09.7]} 13. Be3 {[%clk 0:02:01.2]} 13... Nxe2+ {[%clk 0:01:54.5]} 14.
Nxe2 {[%clk 0:01:59]} 14... Qa5 {[%clk 0:01:52.3]} 15. Bd2 {[%clk 0:01:37]}
15... Qc7 {[%clk 0:01:31.1]} 16. Qc2 {[%clk 0:01:19.5]} 16... Ne6 {[%clk
0:01:28.2]} 17. Bc3 {[%clk 0:01:15.6]} 17... Bd7 {[%clk 0:00:56.9]} 18. Bxg7
{[%clk 0:01:14.2]} 18... Kxg7 {[%clk 0:00:56.6]} 19. Qb2+ {[%clk 0:01:14.5]}
19... Kg8 {[%clk 0:00:39]} 20. Rxb7 {[%clk 0:01:14.5]} 20... Qc8 {[%clk
0:00:32.1]} 21. d4 {[%clk 0:00:57]} 21... Be8 {[%clk 0:00:24.9]} 22. Rb1 {[%clk
0:00:49.4]} 22... Qxc4 {[%clk 0:00:20.5]} 23. Rxe7 {[%clk 0:00:44.8]} 23... Bxa4
{[%clk 0:00:18.5]} 24. Rc1 {[%clk 0:00:27.4]} 24... Rfb8 {[%clk 0:00:11.3]} 25.
Rxc4 {[%clk 0:00:16.9]} 25... Rxb2 {[%clk 0:00:10.6]} 26. Rxa4 {[%clk 0:00:16]}
26... Rxe2 {[%clk 0:00:10.9]} 27. Bf1 {[%clk 0:00:13.7]} 27... Rxe4 {[%clk
0:00:09.6]} 28. Bxa6 {[%clk 0:00:11]} 28... Rxd4 {[%clk 0:00:06.5]} 29. Rxd4
{[%clk 0:00:08.1]} 29... Nxd4 {[%clk 0:00:07.4]} 30. Bb7 {[%clk 0:00:08.7]}
30... Ra7 {[%clk 0:00:04.5]} 31. Re8+ {[%clk 0:00:05.6]} 31... Kg7 {[%clk
0:00:04.7]} 32. Bd5 {[%clk 0:00:06.3]} 32... Ra5 {[%clk 0:00:03.3]} 33. Bc4
{[%clk 0:00:05.4]} 33... Re5 {[%clk 0:00:03.5]} 34. Rd8 {[%clk 0:00:05.3]} 34...
d5 {[%clk 0:00:03.4]} 35. Bd3 {[%clk 0:00:04.7]} 35... Nf3+ {[%clk 0:00:03.4]}
36. Kf1 {[%clk 0:00:03.8]} 36... Ng5 {[%clk 0:00:04.3]} 37. f4 {[%clk
0:00:03.5]} 37... Re3 {[%clk 0:00:04.6]} 38. Be2 {[%clk 0:00:03.4]} 38... Ne4
{[%clk 0:00:04.8]} 39. Rxd5 {[%clk 0:00:03.2]} 39... Rxe2 {[%clk 0:00:05.4]} 40.
Re5 {[%clk 0:00:01.7]} 40... Nc3 {[%clk 0:00:03.7]} 41. Rxe2 {[%clk 0:00:01.7]}
41... Nxe2 {[%clk 0:00:04.6]} 42. Kxe2 {[%clk 0:00:02.6]} 42... Kf6 {[%clk
0:00:05.4]} 43. Kf3 {[%clk 0:00:03.2]} 43... Kf5 {[%clk 0:00:06.3]} 44. g4+
{[%clk 0:00:03.7]} 44... Kf6 {[%clk 0:00:07]} 45. Ke4 {[%clk 0:00:04.4]} 45...
h5 {[%clk 0:00:07.6]} 46. g5+ {[%clk 0:00:04.2]} 46... Ke6 {[%clk 0:00:07.3]}
47. h3 {[%clk 0:00:04.5]} 47... f6 {[%clk 0:00:07.7]} 48. h4 {[%clk 0:00:04.3]}
48... f5+ {[%clk 0:00:07.7]} 49. Kd4 {[%clk 0:00:04.9]} 49... Kd6 {[%clk
0:00:08.3]} 50. Kc4 {[%clk 0:00:05.7]} 50... Kc6 {[%clk 0:00:08.9]} 51. Kd4
{[%clk 0:00:06.6]} 51... Kd6 {[%clk 0:00:09.6]} 52. Kc4 {[%clk 0:00:07.3]} 52...
Kc6 {[%clk 0:00:10.3]} 53. Kd4 {[%clk 0:00:08.2]} 53... Kd6 {[%clk 0:00:11]}
1/2-1/2

[Event "Late-Titled-Tuesday-Blitz-February-13-2024"]
[Site "Chess.com"]
[Date "2024.02.13"]
[Round "5"]
[White "Atousa"]
[Black "elgrona"]
[Result "0-1"]
[WhiteElo "2529"]
[BlackElo "2352"]
[TimeControl "180+1"]
[EndTime "14:56:23 PST"]
[Termination "elgrona won by resignation"]

1. Nf3 {[%clk 0:02:17.1]} 1... Nf6 {[%clk 0:02:58.9]} 2. g3 {[%clk 0:02:16.4]}
2... g6 {[%clk 0:02:58.6]} 3. Bg2 {[%clk 0:02:17.3]} 3... Bg7 {[%clk 0:02:59.1]}
4. O-O {[%clk 0:02:18.2]} 4... d6 {[%clk 0:02:59.5]} 5. d3 {[%clk 0:02:19.1]}
5... c5 {[%clk 0:02:59.1]} 6. e4 {[%clk 0:02:19.7]} 6... Nc6 {[%clk 0:02:59.4]}
7. Nbd2 {[%clk 0:02:20]} 7... O-O {[%clk 0:02:57.8]} 8. a4 {[%clk 0:02:20.7]}
8... Rb8 {[%clk 0:02:57.4]} 9. h3 {[%clk 0:02:21.2]} 9... a6 {[%clk 0:02:57.4]}
10. Re1 {[%clk 0:02:18.8]} 10... Nd7 {[%clk 0:02:55.6]} 11. c3 {[%clk
0:02:18.5]} 11... b5 {[%clk 0:02:53.1]} 12. d4 {[%clk 0:02:17.9]} 12... b4
{[%clk 0:02:47.6]} 13. Nf1 {[%clk 0:02:14.9]} 13... Na5 {[%clk 0:02:42.7]} 14.
dxc5 {[%clk 0:01:58.6]} 14... Nxc5 {[%clk 0:02:38.5]} 15. cxb4 {[%clk
0:01:55.6]} 15... Rxb4 {[%clk 0:02:39.4]} 16. e5 {[%clk 0:01:30.1]} 16... Nab3
{[%clk 0:02:28.1]} 17. Ra3 {[%clk 0:01:25.4]} 17... dxe5 {[%clk 0:02:13.4]} 18.
Bd2 {[%clk 0:01:25.6]} 18... Nxd2 {[%clk 0:02:08.2]} 19. N1xd2 {[%clk
0:01:25.6]} 19... Rxb2 {[%clk 0:02:02.1]} 20. Nc4 {[%clk 0:01:24.1]} 20... Qxd1
{[%clk 0:01:58.8]} 21. Rxd1 {[%clk 0:01:25]} 21... Rb4 {[%clk 0:01:56.4]} 22.
Ncxe5 {[%clk 0:01:20.1]} 22... Rxa4 {[%clk 0:01:54.2]} 23. Rxa4 {[%clk
0:01:18.8]} 23... Nxa4 {[%clk 0:01:54.1]} 24. Nc6 {[%clk 0:01:19.6]} 24... Bf6
{[%clk 0:01:48.3]} 25. g4 {[%clk 0:01:17.1]} 25... h6 {[%clk 0:01:46.8]} 26. Nd2
{[%clk 0:01:01.4]} 26... Nc3 {[%clk 0:01:45.9]} 27. Re1 {[%clk 0:01:01.1]} 27...
e6 {[%clk 0:01:36.2]} 28. Ne4 {[%clk 0:00:57.1]} 28... Kg7 {[%clk 0:01:26.7]}
29. Nxc3 {[%clk 0:00:46.5]} 29... Bxc3 {[%clk 0:01:26.1]} 30. Rc1 {[%clk
0:00:47.4]} 30... Bf6 {[%clk 0:01:23.8]} 31. Na7 {[%clk 0:00:44.1]} 31... Bd7
{[%clk 0:01:21.1]} 32. Bc6 {[%clk 0:00:22.3]} 32... Bxc6 {[%clk 0:01:14.3]} 33.
Rxc6 {[%clk 0:00:23.2]} 33... a5 {[%clk 0:01:11.6]} 34. Ra6 {[%clk 0:00:23.4]}
34... Ra8 {[%clk 0:01:07.7]} 35. Rxa5 {[%clk 0:00:22.1]} 35... Bd4 {[%clk
0:01:07.2]} 36. Nc6 {[%clk 0:00:22.5]} 36... Rxa5 {[%clk 0:01:07]} 37. Nxa5
{[%clk 0:00:23.4]} 37... Kf6 {[%clk 0:01:06]} 38. Nc4 {[%clk 0:00:23.1]} 38...
Kg5 {[%clk 0:01:02.9]} 39. Kg2 {[%clk 0:00:23.4]} 39... Kf4 {[%clk 0:01:01.7]}
40. Nd6 {[%clk 0:00:22.7]} 40... f6 {[%clk 0:00:59.3]} 41. Nf7 {[%clk
0:00:20.6]} 41... h5 {[%clk 0:00:58.3]} 42. gxh5 {[%clk 0:00:20.5]} 42... gxh5
{[%clk 0:00:59.2]} 43. Nd8 {[%clk 0:00:19.7]} 43... e5 {[%clk 0:00:56.6]} 44.
Ne6+ {[%clk 0:00:19.7]} 44... Kf5 {[%clk 0:00:55.8]} 45. Ng7+ {[%clk 0:00:19.9]}
45... Kg6 {[%clk 0:00:55.7]} 46. Ne6 {[%clk 0:00:20.8]} 46... Bb6 {[%clk
0:00:53.4]} 47. Kg3 {[%clk 0:00:20.2]} 47... h4+ {[%clk 0:00:51.9]} 48. Kg4
{[%clk 0:00:19.3]} 48... Bxf2 {[%clk 0:00:51.6]} 49. Nc7 {[%clk 0:00:16.2]}
49... Bg3 {[%clk 0:00:51.1]} 50. Nd5 {[%clk 0:00:15.8]} 50... e4 {[%clk
0:00:49.5]} 51. Ne3 {[%clk 0:00:12.6]} 51... Bf2 {[%clk 0:00:47.9]} 52. Nf5
{[%clk 0:00:12.3]} 52... e3 {[%clk 0:00:47.6]} 53. Nd4 {[%clk 0:00:10]} 53...
f5+ {[%clk 0:00:39.9]} 54. Kf3 {[%clk 0:00:09.4]} 54... Kf6 {[%clk 0:00:36.9]}
55. Nc2 {[%clk 0:00:09.1]} 55... Ke5 {[%clk 0:00:36.3]} 56. Nb4 {[%clk
0:00:09.5]} 56... Kd4 {[%clk 0:00:35.9]} 57. Nc6+ {[%clk 0:00:09.7]} 57... Kd3
{[%clk 0:00:35.6]} 58. Ne5+ {[%clk 0:00:10.2]} 58... Kd2 {[%clk 0:00:35.9]} 59.
Nc4+ {[%clk 0:00:10.6]} 59... Ke1 {[%clk 0:00:32.3]} 60. Nxe3 {[%clk 0:00:10.4]}
60... Bxe3 {[%clk 0:00:32.5]} 61. Kxe3 {[%clk 0:00:11.3]} 61... Kf1 {[%clk
0:00:32.4]} 62. Kf3 {[%clk 0:00:11.7]} 62... Kg1 {[%clk 0:00:32.1]} 63. Kf4
{[%clk 0:00:12]} 63... Kg2 {[%clk 0:00:32.8]} 64. Kxf5 {[%clk 0:00:12.4]} 64...
Kxh3 {[%clk 0:00:33.5]} 65. Kf4 {[%clk 0:00:13.3]} 65... Kg2 {[%clk 0:00:33.7]}
66. Ke3 {[%clk 0:00:14.2]} 66... h3 {[%clk 0:00:34.6]} 0-1

[Event "Late-Titled-Tuesday-Blitz-February-13-2024"]
[Site "Chess.com"]
[Date "2024.02.13"]
[Round "5"]
[White "LyonBeast"]
[Black "h4parah5"]
[Result "1-0"]
[WhiteElo "3181"]
[BlackElo "2966"]
[TimeControl "180+1"]
[EndTime "14:56:25 PST"]
[Termination "LyonBeast won on time"]

1. e4 {[%clk 0:03:00.9]} 1... e5 {[%clk 0:02:58.6]} 2. Nf3 {[%clk 0:03:00.5]}
2... Nc6 {[%clk 0:02:59]} 3. Bc4 {[%clk 0:02:59.7]} 3... Bc5 {[%clk 0:02:58.2]}
4. d3 {[%clk 0:02:55.6]} 4... Nf6 {[%clk 0:02:58.1]} 5. Nc3 {[%clk 0:02:54.8]}
5... h6 {[%clk 0:02:57.7]} 6. Nd5 {[%clk 0:02:53.7]} 6... d6 {[%clk 0:02:55.7]}
7. c3 {[%clk 0:02:46.2]} 7... Nxd5 {[%clk 0:02:53.9]} 8. exd5 {[%clk 0:02:46.3]}
8... Ne7 {[%clk 0:02:53.9]} 9. O-O {[%clk 0:02:41.4]} 9... O-O {[%clk
0:02:51.7]} 10. d4 {[%clk 0:02:40.5]} 10... exd4 {[%clk 0:02:51.7]} 11. Nxd4
{[%clk 0:02:41.4]} 11... Nf5 {[%clk 0:02:48.3]} 12. Nb3 {[%clk 0:02:23.3]} 12...
Bb6 {[%clk 0:02:45.9]} 13. g3 {[%clk 0:02:21.4]} 13... Re8 {[%clk 0:02:39.3]}
14. Bd3 {[%clk 0:02:20.6]} 14... Ne7 {[%clk 0:02:38.2]} 15. Qh5 {[%clk
0:02:08.6]} 15... Qd7 {[%clk 0:02:10.4]} 16. a4 {[%clk 0:01:52.7]} 16... a6
{[%clk 0:02:02.6]} 17. a5 {[%clk 0:01:52.4]} 17... Ba7 {[%clk 0:02:02.3]} 18.
Re1 {[%clk 0:01:36.1]} 18... Ng6 {[%clk 0:01:36.5]} 19. Bxh6 {[%clk 0:01:26]}
19... Ne5 {[%clk 0:00:33.8]} 20. Bxg7 {[%clk 0:01:21]} 20... Qh3 {[%clk
0:00:17.9]} 21. Qxh3 {[%clk 0:01:12.2]} 21... Nf3+ {[%clk 0:00:17.5]} 22. Kh1
{[%clk 0:01:05.1]} 22... Rxe1+ {[%clk 0:00:16.8]} 23. Rxe1 {[%clk 0:00:58.6]}
23... Bxh3 {[%clk 0:00:16.4]} 24. Re7 {[%clk 0:00:59]} 24... Kxg7 {[%clk
0:00:14.5]} 25. Be2 {[%clk 0:00:59.5]} 25... Kf6 {[%clk 0:00:06.8]} 26. Rxc7
{[%clk 0:00:57.2]} 26... Re8 {[%clk 0:00:06.8]} 27. Nc1 {[%clk 0:00:57.5]} 27...
Bxf2 {[%clk 0:00:06.3]} 28. Rc4 {[%clk 0:00:53]} 28... Be3 {[%clk 0:00:04.7]}
29. Nd3 {[%clk 0:00:45.3]} 29... Nd2 {[%clk 0:00:04.2]} 30. Rh4 {[%clk
0:00:43.2]} 30... Bf5 {[%clk 0:00:03.2]} 31. Rb4 {[%clk 0:00:34.5]} 31... Bc5
{[%clk 0:00:02]} 32. Nxc5 {[%clk 0:00:35]} 32... Rxe2 {[%clk 0:00:01.9]} 33. Rf4
{[%clk 0:00:29.6]} 33... dxc5 {[%clk 0:00:01.6]} 34. g4 {[%clk 0:00:30.1]} 34...
Kg5 {[%clk 0:00:01.6]} 35. Rxf5+ {[%clk 0:00:30.6]} 35... Kxg4 {[%clk
0:00:02.3]} 36. Rxf7 {[%clk 0:00:28.8]} 36... Nf3 {[%clk 0:00:02.8]} 37. Rg7+
{[%clk 0:00:29.3]} 37... Kf4 {[%clk 0:00:03.2]} 38. Rf7+ {[%clk 0:00:28.6]}
38... Ke4 {[%clk 0:00:03.8]} 39. Re7+ {[%clk 0:00:29.1]} 39... Ne5 {[%clk
0:00:02.9]} 40. d6 {[%clk 0:00:27.3]} 40... Rd2 {[%clk 0:00:03.1]} 41. Rxb7
{[%clk 0:00:27.3]} 41... Rxd6 {[%clk 0:00:03.2]} 42. Kg2 {[%clk 0:00:25.7]}
42... Nc4 {[%clk 0:00:03]} 43. b4 {[%clk 0:00:25]} 43... cxb4 {[%clk 0:00:02.8]}
44. cxb4 {[%clk 0:00:25.9]} 44... Na3 {[%clk 0:00:02.1]} 45. h4 {[%clk
0:00:25.4]} 45... Nb5 {[%clk 0:00:02.4]} 46. Kg3 {[%clk 0:00:24.1]} 46... Kd4
{[%clk 0:00:02.7]} 47. Rb6 {[%clk 0:00:22.5]} 47... Kc4 {[%clk 0:00:02.4]} 48.
h5 {[%clk 0:00:16.8]} 48... Kxb4 {[%clk 0:00:02.1]} 49. Rxd6 {[%clk 0:00:16.9]}
49... Nxd6 {[%clk 0:00:02]} 50. Kf4 {[%clk 0:00:17.6]} 50... Kxa5 {[%clk
0:00:02.1]} 51. h6 {[%clk 0:00:16.7]} 1-0